bitfinex-derivatives/quotes_BTCF0:USTF0_20250429
["timestamp","ask_amount","ask_price","bid_price","bid_amount"]
[1745931044874,0.0329,94913.0,94912.0,0.7773077]
[1745931045080,0.2435455,94913.0,94912.0,0.4373077]
[1745931046074,0.0329,94913.0,94912.0,0.4373077]
[1745931046264,0.2435455,94913.0,94912.0,0.4373077]
[1745931052778,0.2435455,94913.0,94912.0,0.16776]
[1745931053479,0.2753455,94913.0,94912.0,0.16776]
[1745931056581,0.2753455,94913.0,94912.0,0.14776]
[1745931056986,0.2753455,94913.0,94912.0,0.3584077]
[1745931058677,0.2753455,94913.0,94912.0,0.14776]
[1745931058878,0.2753455,94913.0,94912.0,0.3584077]
[1745931060082,0.2753455,94913.0,94912.0,0.14776]
[1745931062983,0.0647,94913.0,94884.0,0.52143697]
[1745931063182,0.2106721,94901.0,94900.0,0.40126308]
[1745931063493,0.2106721,94901.0,94900.0,0.3589035]
[1745931064077,0.2745721,94901.0,94900.0,0.4789035]
[1745931064286,0.2755721,94901.0,94900.0,0.4789035]
[1745931064586,0.2755721,94901.0,94900.0,0.46859458]
[1745931065178,0.2765721,94901.0,94900.0,0.46859458]
[1745931067677,0.2745721,94901.0,94900.0,0.46859458]
[1745931067977,0.2765721,94901.0,94900.0,0.46859458]
[1745931068178,0.2765721,94901.0,94900.0,0.22792578]
[1745931068179,0.6373721,94901.0,94900.0,0.22792578]
[1745931068381,0.6373721,94901.0,94900.0,0.26792578]
[1745931071089,0.6373721,94901.0,94900.0,0.26]
[1745931071291,0.0526738,94891.0,94882.0,0.01043568]
[1745931071596,0.2107188,94880.0,94879.0,0.22224759]
[1745931071894,0.2107188,94880.0,94879.0,0.26224759]
[1745931072081,0.2107188,94880.0,94879.0,0.59296859]
[1745931072286,0.2107188,94880.0,94879.0,0.60372563]
[1745931072486,0.2741188,94880.0,94879.0,0.39300463]
[1745931072691,0.2741188,94880.0,94879.0,0.17863663]
[1745931072997,0.2741188,94880.0,94879.0,0.16]
[1745931073382,0.2741188,94880.0,94876.0,0.16094099]
[1745931073383,0.2107254,94877.0,94876.0,0.16094099]
[1745931073587,0.2107254,94877.0,94876.0,0.18094099]
[1745931074186,0.2107254,94877.0,94876.0,0.30094099]
[1745931074483,0.2107254,94877.0,94870.0,0.214368]
[1745931074484,0.2107387,94871.0,94870.0,0.214368]
[1745931074687,0.5715387,94871.0,94870.0,0.224368]
[1745931075093,0.5715387,94871.0,94870.0,0.344368]
[1745931075289,0.6654387,94871.0,94870.0,0.334368]
[1745931075686,0.6664387,94871.0,94870.0,0.334368]
[1745931076194,0.6664387,94871.0,94870.0,0.214368]
[1745931076581,0.6674387,94871.0,94870.0,0.214368]
[1745931076782,0.6674387,94871.0,94865.0,0.00105412]
[1745931076783,0.2107498,94866.0,94865.0,0.00105412]
[1745931077094,0.2107498,94866.0,94865.0,0.13105412]
[1745931077288,0.2107498,94866.0,94865.0,0.34180622]
[1745931077686,0.2743498,94866.0,94865.0,0.34180622]
[1745931078082,0.2753498,94866.0,94865.0,0.13105412]
[1745931078284,0.2763498,94866.0,94865.0,0.13105412]
[1745931079193,0.2763498,94866.0,94865.0,0.34180622]
[1745931080098,0.2763498,94866.0,94865.0,0.36860622]
[1745931080599,0.2440498,94866.0,94865.0,0.36860622]
[1745931081094,0.2440498,94866.0,94865.0,0.13105412]
[1745931081293,0.2440498,94866.0,94865.0,0.34180622]
[1745931081492,0.2440498,94866.0,94865.0,0.13105412]
[1745931081694,0.2440498,94866.0,94865.0,0.34180622]
[1745931081895,0.2440498,94866.0,94865.0,0.40110622]
[1745931082085,0.0333,94866.0,94865.0,0.79110622]
[1745931082288,0.0526753,94888.0,94865.0,0.79110622]
[1745931082289,0.2107301,94881.0,94880.0,0.2107165]
[1745931082494,0.2107301,94881.0,94880.0,0.3326165]
[1745931082697,0.2107301,94881.0,94880.0,0.1219]
[1745931083201,0.2433301,94881.0,94880.0,0.2151]
[1745931083696,0.2443301,94881.0,94880.0,0.2151]
[1745931083998,0.2453301,94881.0,94880.0,0.1826]
[1745931087090,0.2453301,94881.0,94880.0,0.4201188]
[1745931087399,0.2453301,94881.0,94880.0,0.2094]
[1745931087798,0.2453301,94881.0,94880.0,0.2412]
[1745931088008,0.2453301,94881.0,94880.0,0.1826]
[1745931088399,0.2453301,94881.0,94880.0,0.15]
[1745931090195,0.2453301,94881.0,94880.0,0.03]
[1745931090396,0.2453301,94881.0,94865.0,0.00105412]
[1745931090397,0.2107498,94866.0,94865.0,0.00105412]
[1745931090606,0.5715498,94866.0,94865.0,0.02105412]
[1745931091104,0.2107498,94866.0,94865.0,0.69260622]
[1745931091293,0.2107498,94866.0,94865.0,0.16105412]
[1745931091496,0.2117498,94866.0,94865.0,0.73260622]
[1745931091895,0.2117498,94866.0,94865.0,0.52185412]
[1745931092296,0.2117498,94866.0,94865.0,0.73260622]
[1745931093697,0.2127498,94866.0,94865.0,0.73260622]
[1745931093897,0.2127498,94866.0,94865.0,0.16105412]
[1745931094105,0.2750498,94866.0,94865.0,0.00105412]
[1745931095108,0.2750498,94866.0,94865.0,0.12105412]
[1745931095806,0.2740498,94866.0,94865.0,0.12105412]
[1745931096205,0.2750498,94866.0,94865.0,0.12105412]
[1745931097696,0.2740498,94866.0,94865.0,0.12105412]
[1745931097905,0.2750498,94866.0,94865.0,0.12105412]
[1745931099506,0.2750498,94866.0,94865.0,0.14105412]
[1745931099708,0.2436498,94866.0,94865.0,0.14105412]
[1745931100897,0.2436498,94866.0,94852.0,0.0015814]
[1745931100898,0.2107787,94853.0,94852.0,0.0015814]
[1745931101097,0.2107787,94853.0,94852.0,0.1515814]
[1745931101703,0.2740787,94853.0,94852.0,0.1515814]
[1745931102103,0.2750787,94853.0,94852.0,0.1515814]
[1745931102607,0.2760787,94853.0,94852.0,0.1515814]
[1745931104009,0.2437787,94853.0,94852.0,0.3623624]
[1745931104212,0.2437787,94853.0,94852.0,0.1515814]
[1745931104908,0.2437787,94853.0,94852.0,0.1315814]
[1745931109011,0.2437787,94853.0,94852.0,0.3423624]
[1745931109406,0.2437787,94853.0,94852.0,0.1583814]
[1745931109606,0.2437787,94853.0,94852.0,0.1315814]
[1745931110114,0.2437787,94853.0,94852.0,0.3423624]
[1745931110312,0.2437787,94853.0,94852.0,0.3691624]
[1745931110913,0.24348237,94853.0,94852.0,0.3691624]
[1745931112815,0.24348237,94853.0,94852.0,0.3791624]
[1745931118703,0.24348237,94853.0,94852.0,0.1415814]
[1745931121011,0.24348237,94853.0,94852.0,0.1215814]
[1745931121410,0.24248237,94853.0,94852.0,0.1215814]
[1745931121614,0.24348237,94853.0,94852.0,0.1215814]
[1745931123711,0.24348237,94853.0,94852.0,0.1315814]
[1745931124621,0.24348237,94853.0,94852.0,0.3735624]
[1745931124622,0.033,94853.0,94852.0,0.3735624]
[1745931124805,0.033,94853.0,94852.0,0.4003624]
[1745931125317,0.2437787,94853.0,94852.0,0.4003624]
[1745931126612,0.033,94853.0,94852.0,0.4003624]
[1745931127805,0.2437787,94853.0,94852.0,0.4003624]
[1745931129411,0.2437787,94853.0,94852.0,0.3423624]
[1745931131209,0.2437787,94853.0,94852.0,0.1315814]
[1745931131912,0.2437787,94853.0,94852.0,0.3423624]
[1745931133025,0.2437787,94853.0,94852.0,0.1315814]
[1745931133922,0.2437787,94853.0,94852.0,0.3423624]
[1745931135606,0.2437787,94853.0,94852.0,0.3523624]
[1745931140210,0.033,94853.0,94852.0,0.3523624]
[1745931140413,0.052685,94871.0,94852.0,0.3169294]
[1745931140722,0.21380877,94867.0,94866.0,0.2107498]
[1745931140911,0.21380877,94867.0,94866.0,0.5507498]
[1745931141111,0.21380877,94867.0,94866.0,2.1707498]
[1745931141522,0.21380877,94867.0,94866.0,2.2015498]
[1745931141723,0.21480877,94867.0,94866.0,1.9283498]
[1745931142220,0.24790877,94867.0,94866.0,1.9283498]
[1745931142422,0.2448476,94867.0,94866.0,1.9283498]
[1745931142627,0.2448476,94867.0,94866.0,0.4283498]
[1745931143420,0.2458476,94867.0,94866.0,0.4283498]
[1745931143621,0.2458476,94867.0,94866.0,0.5027098]
[1745931144122,0.2137476,94867.0,94866.0,0.5027098]
[1745931144325,0.08008323,94872.0,94868.0,0.0526861]
[1745931144625,0.08008323,94872.0,94871.0,0.2107387]
[1745931144824,0.2634011,94881.0,94880.0,0.2107105]
[1745931145029,0.2634011,94881.0,94880.0,0.2307105]
[1745931145523,0.2634011,94881.0,94880.0,0.2900105]
[1745931146119,0.2664011,94881.0,94880.0,0.4100105]
[1745931146521,0.2137165,94881.0,94880.0,0.4100105]
[1745931146724,0.2107165,94881.0,94880.0,0.4100105]
[1745931146922,0.2117165,94881.0,94880.0,0.4110105]
[1745931147122,0.2147165,94881.0,94880.0,0.4120105]
[1745931147721,0.2117165,94881.0,94880.0,0.4120105]
[1745931149019,0.2742165,94881.0,94880.0,0.4120105]
[1745931149921,0.2742165,94881.0,94880.0,0.3527188]
[1745931150117,0.2742165,94881.0,94880.0,0.142]
[1745931150532,0.2742165,94881.0,94880.0,0.3527188]
[1745931151224,0.2742165,94881.0,94880.0,0.2327188]
[1745931152620,0.2742165,94881.0,94880.0,0.022]
[1745931152929,0.3063165,94881.0,94880.0,0.022]
[1745931153126,0.3063165,94881.0,94880.0,0.002]
[1745931162028,0.3063165,94881.0,94880.0,0.2127188]
[1745931162220,0.0635,94881.0,94880.0,0.2127188]
[1745931162425,0.2742165,94881.0,94880.0,0.2327188]
[1745931162836,0.2742165,94881.0,94880.0,0.2984188]
[1745931163923,0.0326,94881.0,94880.0,0.2984188]
[1745931164328,0.001,94881.0,94880.0,0.2984188]
[1745931168931,0.0326,94895.0,94894.0,0.2106877]
[1745931169323,0.2432854,94895.0,94894.0,0.2106877]
[1745931170123,0.0636,94895.0,94894.0,0.2106877]
[1745931170321,0.031,94895.0,94894.0,0.5306877]
[1745931170525,0.034,94895.0,94894.0,0.5316877]
[1745931170728,0.038,94895.0,94894.0,0.5316877]
[1745931171130,0.0688,94895.0,94894.0,0.5316877]
[1745931171533,0.0688,94895.0,94894.0,0.2516877]
[1745931171923,0.036,94895.0,94894.0,0.2546877]
[1745931172434,0.035,94895.0,94894.0,0.2516877]
[1745931172636,0.0648,94895.0,94894.0,0.2536877]
[1745931172932,0.0658,94895.0,94894.0,0.2566877]
[1745931173233,0.2764854,94895.0,94894.0,0.26464465]
[1745931173436,0.2754854,94895.0,94894.0,0.26164465]
[1745931173729,0.2764854,94895.0,94894.0,0.26464465]
[1745931174335,0.2764854,94895.0,94894.0,0.26264465]
[1745931175235,0.2754854,94895.0,94894.0,0.25964465]
[1745931175433,0.2764854,94895.0,94894.0,0.26264465]
[1745931175940,0.2764854,94895.0,94894.0,0.26164465]
[1745931176131,0.2764854,94895.0,94894.0,0.62244465]
[1745931176330,0.2744854,94895.0,94894.0,0.69224465]
[1745931176637,0.2744854,94895.0,94894.0,0.69524465]
[1745931176638,0.2764854,94895.0,94894.0,0.69524465]
[1745931178938,0.2754854,94895.0,94894.0,0.69424465]
[1745931179143,0.2764854,94895.0,94894.0,0.69524465]
[1745931180550,0.0658,94895.0,94894.0,0.69524465]
[1745931180735,0.2764854,94895.0,94894.0,0.69524465]
[1745931181131,0.2633329,94904.0,94901.0,0.0526678]
[1745931181331,0.2408699,94902.0,94901.0,0.2833399]
[1745931181743,0.2408699,94902.0,94901.0,0.29382031]
[1745931182346,0.2408699,94902.0,94901.0,0.29582031]
[1745931182742,0.2408699,94902.0,94901.0,0.2843399]
[1745931182940,0.2418699,94902.0,94901.0,0.2853399]
[1745931183140,0.2438699,94902.0,94901.0,0.2853399]
[1745931183345,0.2428699,94902.0,94901.0,0.2843399]
[1745931183535,0.2438699,94902.0,94901.0,0.2853399]
[1745931185144,0.2418699,94902.0,94901.0,0.2853399]
[1745931187947,0.2418699,94902.0,94901.0,0.022]
[1745931189153,0.2418699,94902.0,94901.0,0.002]
[1745931189355,0.2418699,94902.0,94901.0,0.2126721]
[1745931190052,0.2418699,94902.0,94901.0,0.002]
[1745931190749,0.2418699,94902.0,94901.0,0.2126721]
[1745931190954,0.2418699,94902.0,94901.0,0.2226721]
[1745931191659,0.2418699,94902.0,94901.0,0.012]
[1745931192060,0.2418699,94902.0,94901.0,0.2226721]
[1745931192260,0.2418699,94902.0,94901.0,0.012]
[1745931194568,0.2418699,94902.0,94901.0,0.2226721]
[1745931194954,0.2418699,94902.0,94901.0,0.002]
[1745931197757,0.6026699,94902.0,94901.0,0.002]
[1745931202159,0.6026699,94902.0,94901.0,0.122]
[1745931208065,0.2418699,94902.0,94901.0,0.122]
[1745931209467,0.2742699,94902.0,94901.0,0.122]
[1745931214963,0.2107054,94887.0,94886.0,0.2107035]
[1745931215171,0.2107054,94887.0,94886.0,0.2620035]
[1745931215367,0.2754054,94887.0,94886.0,0.2620035]
[1745931216270,0.2764054,94887.0,94886.0,0.2650035]
[1745931216476,0.2764054,94887.0,94886.0,0.0543]
[1745931216668,0.2764054,94887.0,94886.0,0.06225256]
[1745931217274,0.2442054,94887.0,94886.0,0.06225256]
[1745931217469,0.2764054,94887.0,94886.0,0.06225256]
[1745931217873,0.2774054,94887.0,94886.0,0.04525256]
[1745931218479,0.2774054,94887.0,94886.0,0.0373]
[1745931218779,0.2774054,94887.0,94886.0,0.0689]
[1745931222671,0.2452054,94887.0,94886.0,0.0689]
[1745931227074,0.2769054,94887.0,94886.0,0.0689]
[1745931228478,0.2769054,94887.0,94886.0,0.0373]
[1745931228680,0.2769054,94887.0,94886.0,0.006]
[1745931230673,0.2769054,94887.0,94886.0,0.0365]
[1745931232890,0.2769054,94887.0,94886.0,0.006]
[1745931238192,0.2107343,94873.0,94868.0,0.0313]
[1745931238390,0.2107343,94873.0,94872.0,0.43028]
[1745931239093,0.2712343,94873.0,94872.0,0.43028]
[1745931239888,0.2722343,94873.0,94872.0,0.43028]
[1745931240093,0.2732343,94873.0,94872.0,0.001]
[1745931240794,0.6340343,94873.0,94872.0,0.001]
[1745931246894,0.2107498,94866.0,94865.0,0.00105412]
[1745931247087,0.2107498,94866.0,94852.0,0.0015814]
[1745931247088,0.2107787,94853.0,94852.0,0.0015814]
[1745931248985,0.2117787,94853.0,94852.0,0.0015814]
[1745931249586,0.2127787,94853.0,94852.0,0.0015814]
[1745931251298,0.002,94853.0,94844.0,0.16093036]
[1745931251596,0.2107898,94848.0,94847.0,4e-08]
[1745931252499,0.2758898,94848.0,94847.0,4e-08]
[1745931252691,0.2768898,94848.0,94847.0,4e-08]
[1745931252883,0.6376898,94848.0,94847.0,4e-08]
[1745931253089,0.2107987,94844.0,94843.0,0.0328]
[1745931253897,0.2758987,94844.0,94843.0,0.0328]
[1745931255996,0.2778987,94844.0,94843.0,0.0328]
[1745931260793,0.2127987,94844.0,94843.0,0.3328]
[1745931260993,0.2127987,94844.0,94843.0,0.543601]
[1745931261394,0.002,94844.0,94843.0,0.349037]
[1745931261596,0.06530985,94853.0,94848.0,0.0526973]
[1745931261794,0.2634855,94850.0,94849.0,0.0633]
[1745931261998,0.2634855,94850.0,94849.0,0.0833]
[1745931262895,0.2634855,94850.0,94849.0,0.294081]
[1745931263201,0.2644855,94850.0,94849.0,1.794081]
[1745931264505,0.2654855,94850.0,94849.0,1.794081]
[1745931265608,0.2654855,94850.0,94849.0,0.294081]
[1745931269609,0.2654855,94850.0,94849.0,0.274081]
[1745931271412,0.2127876,94850.0,94849.0,0.274081]
[1745931274017,0.002,94850.0,94849.0,0.644881]
[1745931274316,0.002,94850.0,94849.0,0.964881]
[1745931274519,0.002,94850.0,94849.0,0.66531001]
[1745931276610,0.2127854,94850.0,94849.0,0.654881]
[1745931277216,0.2445854,94850.0,94849.0,0.654881]
[1745931278110,0.2445854,94850.0,94849.0,0.634881]
[1745931279811,0.2445854,94850.0,94849.0,0.3929]
[1745931281818,0.2445854,94850.0,94849.0,0.6036876]
[1745931282211,0.0338,94850.0,94849.0,0.6036876]
[1745931282410,0.002,94850.0,94849.0,0.9536876]
[1745931283520,0.2127854,94850.0,94849.0,0.6236876]
[1745931284325,0.2458854,94850.0,94849.0,0.5915876]
[1745931286322,0.2458854,94850.0,94849.0,0.5715876]
[1745931289615,0.2127854,94850.0,94849.0,0.5715876]
[1745931289929,0.002,94850.0,94849.0,0.9335876]
[1745931291924,0.0333,94850.0,94849.0,0.9335876]
[1745931292124,0.0333,94850.0,94849.0,0.6735876]
[1745931292326,0.0333,94850.0,94849.0,0.9535876]
[1745931294821,0.002,94850.0,94849.0,0.9535876]
[1745931297022,0.002,94850.0,94849.0,1.0283876]
[1745931301032,0.2127854,94850.0,94849.0,0.7683876]
[1745931301330,0.2127854,94850.0,94849.0,0.7363876]
[1745931301934,0.2453854,94850.0,94849.0,0.7363876]
[1745931302528,0.2453854,94850.0,94849.0,0.5256]
[1745931302733,0.2453854,94850.0,94849.0,0.7363876]
[1745931305838,0.2453854,94850.0,94849.0,0.6463876]
[1745931321830,0.2453854,94850.0,94849.0,0.9663876]
[1745931322432,0.0346,94850.0,94849.0,0.9663876]
[1745931323040,0.0346,94850.0,94849.0,0.9963876]
[1745931330545,0.0305,94864.0,94863.0,0.2107565]
[1745931330745,0.2107512,94866.0,94865.0,0.2107521]
[1745931332550,0.2137512,94866.0,94865.0,0.2107521]
[1745931333449,0.005,94866.0,94865.0,0.5317521]
[1745931333938,0.004,94866.0,94865.0,0.5327521]
[1745931334140,0.004,94866.0,94865.0,0.5632521]
[1745931334338,0.002,94866.0,94865.0,0.5632521]
[1745931334741,0.0319,94868.0,94867.0,0.2107476]
[1745931334942,0.0319,94868.0,94867.0,0.6868676]
[1745931335144,0.0319,94868.0,94867.0,2.1868676]
[1745931335343,0.0319,94868.0,94867.0,2.2182676]
[1745931336342,0.0319,94868.0,94867.0,2.1421476]
[1745931336537,0.0319,94868.0,94867.0,2.2192276]
[1745931336754,0.0329,94868.0,94867.0,2.2192276]
[1745931337451,0.0339,94868.0,94867.0,2.2192276]
[1745931337748,0.0339,94868.0,94867.0,2.2212276]
[1745931338138,0.0329,94868.0,94867.0,2.2212276]
[1745931338337,0.0339,94868.0,94867.0,2.2222276]
[1745931342947,0.0339,94868.0,94867.0,1.8222276]
[1745931343144,0.2446454,94868.0,94867.0,1.8408276]
[1745931343346,0.2446454,94868.0,94867.0,0.004]
[1745931345954,0.2107654,94859.0,94858.0,0.0738]
[1745931346951,0.2743654,94859.0,94858.0,0.0738]
[1745931347350,0.2753654,94859.0,94858.0,0.0768]
[1745931347652,0.2763654,94859.0,94858.0,0.0768]
[1745931348157,0.2763654,94859.0,94858.0,0.003]
[1745931348358,0.26347,94856.0,94855.0,0.2107728]
[1745931348859,0.32627,94856.0,94855.0,0.2107728]
[1745931349850,0.32827,94856.0,94855.0,0.2107728]
[1745931350361,0.2755765,94856.0,94855.0,0.2107728]
[1745931350969,0.2765765,94856.0,94855.0,0.2107728]
[1745931351256,0.2107765,94854.0,94853.0,0.3608]
[1745931351856,0.2107943,94846.0,94845.0,0.0738]
[1745931352258,0.2107943,94846.0,94845.0,0.2845965]
[1745931352858,0.2746943,94846.0,94845.0,0.2845965]
[1745931353560,0.2756943,94846.0,94845.0,0.2845965]
[1745931354655,0.2766943,94846.0,94845.0,0.2845965]
[1745931358770,0.2766943,94846.0,94845.0,0.2107965]
[1745931359667,0.0659,94846.0,94845.0,0.2107965]
[1745931360262,0.0659,94846.0,94845.0,0.2755965]
[1745931363071,0.0659,94846.0,94845.0,0.3493965]
[1745931371974,0.0526872,94868.0,94859.0,0.0526911]
[1745931372169,0.2433568,94863.0,94862.0,0.2107587]
[1745931372375,0.2433568,94863.0,94862.0,0.5715587]
[1745931372563,0.2433568,94863.0,94862.0,0.2107587]
[1745931373176,0.210761,94861.0,94860.0,0.3077621]
[1745931373868,0.242261,94861.0,94860.0,0.3077621]
[1745931374970,0.242261,94861.0,94860.0,0.2417621]
[1745931375179,0.242261,94861.0,94860.0,0.2107621]
[1745931375480,0.243261,94861.0,94860.0,0.2117621]
[1745931375681,0.244261,94861.0,94860.0,0.2127621]
[1745931378684,0.244261,94861.0,94860.0,0.002]
[1745931396997,0.244261,94861.0,94860.0,0.0337]
[1745931398085,0.274261,94861.0,94860.0,0.0337]
[1745931403088,0.274261,94861.0,94860.0,0.002]
[1745931404995,0.274261,94861.0,94860.0,0.0346]
[1745931405393,0.274261,94861.0,94860.0,0.0675]
[1745931407404,0.242761,94861.0,94860.0,0.0675]
[1745931407806,0.242761,94861.0,94860.0,0.2782632]
[1745931411511,0.242761,94861.0,94860.0,0.0675]
[1745931412002,0.242761,94861.0,94860.0,0.2782632]
[1745931420215,0.242761,94861.0,94860.0,0.0675]
[1745931420417,0.242761,94861.0,94860.0,0.2782632]
[1745931421218,0.242761,94861.0,94860.0,0.0675]
[1745931421519,0.242761,94861.0,94860.0,0.2782632]
[1745931431527,0.032,94861.0,94860.0,0.2782632]
[1745931434630,0.242761,94861.0,94860.0,0.2782632]
[1745931434818,0.275161,94861.0,94860.0,0.2782632]
[1745931439043,0.275161,94861.0,94860.0,0.2127632]
[1745931442642,0.635961,94861.0,94860.0,0.002]
[1745931450543,0.666561,94861.0,94860.0,0.002]
[1745931457452,0.305761,94861.0,94860.0,0.2127632]
[1745931457636,0.275161,94861.0,94860.0,0.2127632]
[1745931458242,0.275161,94861.0,94860.0,0.2763632]
[1745931459143,0.242761,94861.0,94860.0,0.2763632]
[1745931460648,0.032,94861.0,94860.0,0.5963632]
[1745931460951,0.032,94861.0,94860.0,0.2763632]
[1745931461151,0.242761,94861.0,94860.0,0.2763632]
[1745931468458,0.032,94861.0,94860.0,0.2763632]
[1745931468656,0.242761,94861.0,94860.0,0.2763632]
[1745931469467,0.032,94861.0,94860.0,0.2763632]
[1745931470066,0.242761,94861.0,94860.0,0.2763632]
[1745931470664,0.032,94861.0,94860.0,0.2763632]
[1745931471353,0.242761,94861.0,94860.0,0.2763632]
[1745931471759,0.032,94861.0,94860.0,0.2763632]
[1745931472053,0.242761,94861.0,94860.0,0.2763632]
[1745931475357,0.242761,94861.0,94860.0,0.4963632]
[1745931477352,0.032,94861.0,94860.0,0.4963632]
[1745931477553,0.242761,94861.0,94860.0,0.4963632]
[1745931479759,0.242761,94861.0,94860.0,0.4463632]
[1745931480350,0.273761,94861.0,94860.0,0.4463632]
[1745931481365,0.273761,94861.0,94860.0,0.2763632]
[1745931484267,0.273761,94861.0,94860.0,0.2451632]
[1745931484475,0.273761,94861.0,94860.0,0.2127632]
[1745931488066,0.273761,94861.0,94860.0,0.2446632]
[1745931488365,0.032,94861.0,94860.0,0.5546632]
[1745931488669,0.2410432,94869.0,94868.0,0.2107454]
[1745931488858,0.2410432,94869.0,94868.0,0.9115454]
[1745931489253,0.0015,94870.0,94869.0,0.2107432]
[1745931489465,0.0015,94870.0,94869.0,0.5928432]
[1745931489654,0.0015,94870.0,94869.0,0.6247432]
[1745931490263,0.212241,94870.0,94869.0,0.6247432]
[1745931490465,0.244141,94870.0,94869.0,0.2747432]
[1745931490667,0.247141,94870.0,94869.0,0.2747432]
[1745931491257,0.0364,94870.0,94860.0,0.3608]
[1745931491458,0.210761,94861.0,94860.0,0.5715587]
[1745931491659,0.210761,94861.0,94860.0,0.06772]
[1745931492161,0.2107676,94858.0,94857.0,0.2107678]
[1745931492361,0.0526913,94859.0,94853.0,0.2107774]
[1745931492574,0.0526903,94861.0,94853.0,0.2107774]
[1745931492575,0.2107765,94854.0,94853.0,0.2107774]
[1745931492872,0.2107765,94854.0,94853.0,0.2784974]
[1745931493576,0.2434765,94854.0,94853.0,0.2784974]
[1745931495362,0.2444765,94854.0,94853.0,0.2794974]
[1745931495567,0.2454765,94854.0,94853.0,0.2804974]
[1745931498085,0.0347,94854.0,94853.0,0.2804974]
[1745931498386,0.002,94854.0,94853.0,0.2804974]
[1745931498682,0.002,94854.0,94853.0,0.3106974]
[1745931499078,0.002,94854.0,94853.0,0.6706974]
[1745931502894,0.0307,94861.0,94860.0,0.2107632]
[1745931503092,0.0307,94861.0,94860.0,0.9115632]
[1745931503689,0.0307,94861.0,94860.0,1.0068632]
[1745931503986,0.0307,94861.0,94860.0,1.0745832]
[1745931504589,0.0317,94861.0,94860.0,0.7355832]
[1745931505691,0.001,94861.0,94860.0,0.7355832]
[1745931505882,0.002,94861.0,94860.0,0.7365832]
[1745931506589,0.002,94861.0,94860.0,0.6733832]
[1745931507194,0.065,94861.0,94860.0,0.6733832]
[1745931507388,0.275761,94861.0,94860.0,0.6733832]
[1745931508784,0.065,94861.0,94860.0,0.5735632]
[1745931508991,0.275761,94861.0,94860.0,0.5735632]
[1745931509290,0.065,94861.0,94860.0,0.5735632]
[1745931509690,0.275761,94861.0,94860.0,0.5735632]
[1745931509891,0.275761,94861.0,94860.0,0.6035632]
[1745931510796,0.065,94861.0,94860.0,0.6035632]
[1745931512998,0.065,94861.0,94860.0,0.6712832]
[1745931513595,0.065,94861.0,94860.0,0.9812832]
[1745931516600,0.065,94861.0,94860.0,0.6712832]
[1745931520004,0.065,94861.0,94860.0,0.7029832]
[1745931522601,0.065,94861.0,94860.0,1.0529832]
[1745931530614,0.065,94861.0,94860.0,0.7029832]
[1745931533915,0.065,94861.0,94860.0,1.0637832]
[1745931537909,0.002,94861.0,94860.0,1.3837832]
[1745931538209,0.0304,94868.0,94867.0,0.2107476]
[1745931538409,0.0304,94868.0,94867.0,0.6937476]
[1745931538715,0.0304,94868.0,94867.0,2.1937476]
[1745931539316,0.0324,94868.0,94867.0,2.1947476]
[1745931540123,0.0344,94868.0,94867.0,2.1957476]
[1745931540719,0.0344,94868.0,94867.0,2.2642676]
[1745931541123,0.0344,94868.0,94867.0,1.8942676]
[1745931541620,0.0344,94868.0,94867.0,1.90495169]
[1745931543221,0.0344,94868.0,94867.0,2.26575169]
[1745931544025,0.0645,94868.0,94867.0,2.26575169]
[1745931545114,0.0645,94868.0,94867.0,2.24575169]
[1745931545316,0.0645,94868.0,94867.0,1.08575169]
[1745931546522,0.031,94879.0,94867.0,1.08575169]
[1745931546523,0.031,94879.0,94873.0,0.0526835]
[1745931546713,0.0319,94878.0,94877.0,0.2107254]
[1745931546914,0.0319,94878.0,94877.0,0.5715254]
[1745931548715,0.0623,94878.0,94877.0,0.5715254]
[1745931549820,0.0633,94878.0,94877.0,0.5745254]
[1745931550123,0.0633,94878.0,94877.0,0.58254928]
[1745931557918,0.0633,94878.0,94877.0,0.61524928]
[1745931560227,0.2740232,94878.0,94877.0,0.58254928]
[1745931561120,0.2740232,94878.0,94877.0,0.65030928]
[1745931561321,0.2740232,94878.0,94877.0,2.15030928]
[1745931561728,0.0633,94878.0,94877.0,2.15030928]
[1745931563524,0.0633,94878.0,94877.0,2.18270928]
[1745931564531,0.0314,94878.0,94877.0,2.48270928]
[1745931564736,1e-08,94878.0,94877.0,2.48270928]
[1745931565030,1e-08,94878.0,94877.0,0.98270928]
[1745931565628,1e-08,94878.0,94877.0,2.48270928]
[1745931575529,1e-08,94878.0,94877.0,2.41494928]
[1745931575731,1e-08,94878.0,94877.0,2.48270928]
[1745931580830,1e-08,94878.0,94877.0,2.18270928]
[1745931581031,1e-08,94878.0,94877.0,0.37182388]
[1745931581229,0.21072321,94878.0,94877.0,0.43958388]
[1745931581425,0.21072321,94878.0,94877.0,0.65030928]
[1745931581631,0.24232321,94878.0,94877.0,0.65030928]
[1745931582036,0.24232321,94878.0,94877.0,0.3638]
[1745931582243,0.2107454,94868.0,94867.0,0.3608]
[1745931582443,0.0526836,94873.0,94867.0,0.3608]
[1745931582735,0.3056432,94869.0,94868.0,0.2634312]
[1745931582937,0.3056432,94869.0,94868.0,0.2949312]
[1745931584429,0.3056432,94869.0,94868.0,0.2634312]
[1745931584634,0.3056432,94869.0,94868.0,0.2107454]
[1745931584837,0.2107454,94868.0,94867.0,0.3638]
[1745931585043,0.2117454,94868.0,94867.0,0.3678]
[1745931585237,0.2729454,94868.0,94867.0,0.3678]
[1745931585537,0.2729454,94868.0,94867.0,0.3648]
[1745931585749,0.2719454,94868.0,94867.0,0.3608]
[1745931585938,0.2107476,94867.0,94866.0,0.16093036]
[1745931586438,0.2719476,94867.0,94866.0,0.37168016]
[1745931587133,0.2729476,94867.0,94866.0,0.16193036]
[1745931587332,0.2729476,94867.0,94866.0,0.37268016]
[1745931587638,0.2729476,94867.0,94866.0,0.2117498]
[1745931588634,0.2729476,94867.0,94866.0,0.001]
[1745931588833,0.263445,94865.0,94864.0,0.0526884]
[1745931589035,0.263445,94865.0,94864.0,0.2107543]
[1745931589229,0.326345,94865.0,94864.0,0.2107543]
[1745931591632,0.326345,94865.0,94864.0,0.2117543]
[1745931591837,0.326345,94865.0,94864.0,0.2127543]
[1745931592033,0.326345,94865.0,94864.0,0.2117543]
[1745931595141,0.0317,94865.0,94864.0,0.5725543]
[1745931595345,0.2424521,94865.0,94864.0,0.6373543]
[1745931598435,0.2424521,94865.0,94864.0,0.2765543]
[1745931600150,0.2424521,94865.0,94864.0,0.2448543]
[1745931601350,0.2424521,94865.0,94864.0,0.0341]
[1745931602253,0.0526885,94864.0,94837.0,0.3608]